[Event "Titled Tuesday Blitz April 25 Early 2023"]
[White "Benaddi, Mouhcine"]
[Black "Carrasco Miranda, Andres"]
[WhiteFideId "9001050"]
[BlackFideId "3405990"]
[WhiteElo "2036"]
[BlackElo "2183"]
[Result "1-0"]
[Round "04"]
[TimeControl "180+2"]
[Date "2023.04.25"]
[WhiteClock "0:02:15"]
[BlackClock "0:01:13"]

1. Nf3 {[%clk 0:02:53]}  Nf6 {[%clk 0:01:49]} 2. g3 {[%clk 0:02:49]}  g6 {[%clk 0:01:48]} 3. Bg2 {[%clk 0:02:49]}  Bg7 {[%clk 0:01:49]} 4. O-O {[%clk 0:02:50]}  O-O {[%clk 0:01:49]} 5. d4 {[%clk 0:02:50]}  d6 {[%clk 0:01:50]} 6. c4 {[%clk 0:02:51]}  Nc6 {[%clk 0:01:50]} 7. Nc3 {[%clk 0:02:51]}  Bf5 {[%clk 0:01:51]} 8. Nh4 {[%clk 0:02:46]}  Bd7 {[%clk 0:01:44]} 9. b3 {[%clk 0:02:45]}  e5 {[%clk 0:01:43]} 10. d5 {[%clk 0:02:44]}  Ne7 {[%clk 0:01:40]} 11. e4 {[%clk 0:02:43]}  c5 {[%clk 0:01:35]} 12. dxc6 {[%clk 0:02:32]}  Bxc6 {[%clk 0:01:35]} 13. Ba3 {[%clk 0:02:31]}  Ne8 {[%clk 0:01:33]} 14. Qd2 {[%clk 0:02:23]}  f5 {[%clk 0:01:28]} 15. exf5 {[%clk 0:02:20]}  Bxg2 {[%clk 0:01:29]} 16. Kxg2 {[%clk 0:02:17]}  Nxf5 {[%clk 0:01:17]} 17. Nxf5 {[%clk 0:02:16]}  g5 {[%clk 0:01:13]} 18. Nxg7 {[%clk 0:02:15]} 1-0


[Site "https://www.chess.com"]

[Event "Titled Tuesday Blitz April 25 Early 2023"]
[White "Quirke, Jeffrey"]
[Black "Pandey Srishti"]
[WhiteFideId "2013029"]
[BlackFideId "35093290"]
[WhiteElo "2219"]
[BlackElo "2083"]
[Result "0-1"]
[Round "04"]
[TimeControl "180+2"]
[Date "2023.04.25"]
[WhiteClock "0:00:03"]
[BlackClock "0:01:11"]

1. e4 {[%clk 0:03:00]}  e5 {[%clk 0:02:59]} 2. Nf3 {[%clk 0:03:00]}  Nc6 {[%clk 0:03:00]} 3. Bb5 {[%clk 0:03:00]}  a6 {[%clk 0:02:58]} 4. Ba4 {[%clk 0:03:00]}  Nf6 {[%clk 0:02:58]} 5. Qe2 {[%clk 0:02:58]}  b5 {[%clk 0:02:57]} 6. Bb3 {[%clk 0:02:58]}  Bc5 {[%clk 0:02:57]} 7. h3 {[%clk 0:02:56]}  d6 {[%clk 0:02:56]} 8. d3 {[%clk 0:02:54]}  Qe7 {[%clk 0:02:53]} 9. g4 {[%clk 0:02:47]}  Be6 {[%clk 0:02:52]} 10. Bxe6 {[%clk 0:02:44]}  Qxe6 {[%clk 0:02:53]} 11. Nc3 {[%clk 0:02:30]}  h6 {[%clk 0:02:48]} 12. Be3 {[%clk 0:02:24]}  Nd4 {[%clk 0:02:44]} 13. Bxd4 {[%clk 0:02:24]}  exd4 {[%clk 0:02:45]} 14. Nd1 {[%clk 0:02:20]}  Nd7 {[%clk 0:02:40]} 15. Nh4 {[%clk 0:02:12]}  g6 {[%clk 0:02:36]} 16. f4 {[%clk 0:02:09]}  Bb6 {[%clk 0:02:34]} 17. Nf2 {[%clk 0:02:04]}  Qe7 {[%clk 0:02:29]} 18. Ng2 {[%clk 0:01:57]}  c5 {[%clk 0:02:20]} 19. O-O {[%clk 0:01:48]}  g5 {[%clk 0:02:17]} 20. Nh1 {[%clk 0:01:34]}  h5 {[%clk 0:02:15]} 21. Ng3 {[%clk 0:01:29]}  hxg4 {[%clk 0:02:12]} 22. hxg4 {[%clk 0:01:22]}  gxf4 {[%clk 0:02:04]} 23. Rxf4 {[%clk 0:01:17]}  Ne5 {[%clk 0:01:56]} 24. Nf5 {[%clk 0:01:06]}  Qd7 {[%clk 0:01:47]} 25. a4 {[%clk 0:00:52]}  bxa4 {[%clk 0:01:32]} 26. Rff1 {[%clk 0:00:20]}  O-O-O {[%clk 0:01:30]} 27. Ra3 {[%clk 0:00:18]}  Rdg8 {[%clk 0:01:28]} 28. Rfa1 {[%clk 0:00:11]}  Rxg4 {[%clk 0:01:28]} 29. Rxa4 {[%clk 0:00:11]}  Rhg8 {[%clk 0:01:26]} 30. Rxa6 {[%clk 0:00:08]}  Rxg2+ {[%clk 0:01:20]} 31. Qxg2 {[%clk 0:00:09]}  Rxg2+ {[%clk 0:01:20]} 32. Kxg2 {[%clk 0:00:10]}  Kb7 {[%clk 0:01:20]} 33. Ra8 {[%clk 0:00:04]}  d5 {[%clk 0:01:18]} 34. Rg8 {[%clk 0:00:03]}  dxe4 {[%clk 0:01:16]} 35. dxe4 {[%clk 0:00:03]}  Qc6 {[%clk 0:01:11]} 0-1


[Site "https://www.chess.com"]

[Event "Titled Tuesday Blitz April 25 Early 2023"]
[White "Fuzesabonyilaci"]
[Black "Kiseleva, Arina"]
[BlackFideId "4164989"]
[WhiteElo "2328"]
[BlackElo "1708"]
[Result "1/2-1/2"]
[Round "04"]
[TimeControl "180+2"]
[Date "2023.04.25"]
[WhiteClock "0:00:02"]
[BlackClock "0:00:03"]

1. e4 {[%clk 0:03:00]}  c6 {[%clk 0:02:59]} 2. d4 {[%clk 0:03:00]}  d5 {[%clk 0:03:00]} 3. e5 {[%clk 0:03:00]}  Bf5 {[%clk 0:02:59]} 4. h4 {[%clk 0:02:56]}  h5 {[%clk 0:02:59]} 5. Bd3 {[%clk 0:02:51]}  Bxd3 {[%clk 0:02:58]} 6. Qxd3 {[%clk 0:02:51]}  Qa5+ {[%clk 0:02:56]} 7. b4 {[%clk 0:02:50]}  Qxb4+ {[%clk 0:02:48]} 8. Nd2 {[%clk 0:02:49]}  e6 {[%clk 0:02:44]} 9. Rb1 {[%clk 0:02:48]}  Qa5 {[%clk 0:02:40]} 10. Rxb7 {[%clk 0:02:46]}  Nd7 {[%clk 0:02:28]} 11. Ne2 {[%clk 0:02:30]}  Nb6 {[%clk 0:02:12]} 12. O-O {[%clk 0:02:22]}  Ne7 {[%clk 0:02:07]} 13. Nb3 {[%clk 0:02:07]}  Qb5 {[%clk 0:02:02]} 14. Qf3 {[%clk 0:01:47]}  Nf5 {[%clk 0:01:37]} 15. Ng3 {[%clk 0:01:34]}  g6 {[%clk 0:01:34]} 16. Nxf5 {[%clk 0:01:29]}  gxf5 {[%clk 0:01:33]} 17. Qd3 {[%clk 0:01:21]}  Qxd3 {[%clk 0:01:25]} 18. cxd3 {[%clk 0:01:22]}  Be7 {[%clk 0:01:10]} 19. Bg5 {[%clk 0:01:05]}  Bxg5 {[%clk 0:00:57]} 20. hxg5 {[%clk 0:01:06]}  f4 {[%clk 0:00:35]} 21. Rc1 {[%clk 0:01:00]}  Rc8 {[%clk 0:00:33]} 22. g6 {[%clk 0:00:51]}  fxg6 {[%clk 0:00:30]} 23. Nc5 {[%clk 0:00:49]}  O-O {[%clk 0:00:23]} 24. Nxe6 {[%clk 0:00:47]}  Rf7 {[%clk 0:00:22]} 25. Rxf7 {[%clk 0:00:40]}  Kxf7 {[%clk 0:00:23]} 26. Rxc6 {[%clk 0:00:30]}  Rxc6 {[%clk 0:00:15]} 27. Nd8+ {[%clk 0:00:30]}  Ke8 {[%clk 0:00:13]} 28. Nxc6 {[%clk 0:00:31]}  a6 {[%clk 0:00:11]} 29. Nb4 {[%clk 0:00:29]}  a5 {[%clk 0:00:09]} 30. Nc6 {[%clk 0:00:27]}  a4 {[%clk 0:00:09]} 31. Nb4 {[%clk 0:00:26]}  Kd7 {[%clk 0:00:08]} 32. a3 {[%clk 0:00:24]}  Ke6 {[%clk 0:00:07]} 33. f3 {[%clk 0:00:24]}  g5 {[%clk 0:00:06]} 34. Kf2 {[%clk 0:00:24]}  Nc8 {[%clk 0:00:05]} 35. Na2 {[%clk 0:00:22]}  Ne7 {[%clk 0:00:05]} 36. Nc3 {[%clk 0:00:22]}  Nf5 {[%clk 0:00:05]} 37. Nb5 {[%clk 0:00:12]}  g4 {[%clk 0:00:04]} 38. Nc7+ {[%clk 0:00:11]}  Kd7 {[%clk 0:00:04]} 39. Nxd5 {[%clk 0:00:10]}  Nxd4 {[%clk 0:00:03]} 40. fxg4 {[%clk 0:00:09]}  hxg4 {[%clk 0:00:03]} 41. Nxf4 {[%clk 0:00:09]}  Nc2 {[%clk 0:00:01]} 42. Nd5 {[%clk 0:00:08]}  Nxa3 {[%clk 0:00:01]} 43. Nc3 {[%clk 0:00:09]}  Ke6 {[%clk 0:00:01]} 44. d4 {[%clk 0:00:08]}  Nc2 {[%clk 0:00:02]} 45. Nxa4 {[%clk 0:00:06]}  Nxd4 {[%clk 0:00:02]} 46. Kg3 {[%clk 0:00:04]}  Nf5+ {[%clk 0:00:02]} 47. Kxg4 {[%clk 0:00:01]}  Ne3+ {[%clk 0:00:02]} 48. Kf3 {[%clk 0:00:02]}  Nxg2 {[%clk 0:00:02]} 49. Kxg2 {[%clk 0:00:02]}  Kxe5 {[%clk 0:00:03]} 1/2-1/2


[Site "https://www.chess.com"]

[Event "Titled Tuesday Blitz April 25 Early 2023"]
[White "dDobravcan"]
[Black "Mogirzan, Matei-Valeriu"]
[BlackFideId "1257455"]
[WhiteElo "2151"]
[BlackElo "1733"]
[Result "0-1"]
[Round "04"]
[TimeControl "180+2"]
[Date "2023.04.25"]
[WhiteClock "0:00:05"]
[BlackClock "0:00:22"]

1. d4 {[%clk 0:03:00]}  Nf6 {[%clk 0:02:59]} 2. Nc3 {[%clk 0:03:00]}  d5 {[%clk 0:02:58]} 3. Bf4 {[%clk 0:02:59]}  c6 {[%clk 0:02:58]} 4. e3 {[%clk 0:02:57]}  g6 {[%clk 0:02:57]} 5. h4 {[%clk 0:02:56]}  Bg7 {[%clk 0:02:58]} 6. h5 {[%clk 0:02:54]}  Nxh5 {[%clk 0:02:46]} 7. Rxh5 {[%clk 0:02:55]}  gxh5 {[%clk 0:02:47]} 8. Qxh5 {[%clk 0:02:54]}  Bf6 {[%clk 0:02:42]} 9. Nf3 {[%clk 0:02:46]}  b5 {[%clk 0:02:39]} 10. Qh2 {[%clk 0:02:43]}  Na6 {[%clk 0:02:36]} 11. O-O-O {[%clk 0:02:27]}  Qa5 {[%clk 0:02:32]} 12. Kb1 {[%clk 0:02:26]}  b4 {[%clk 0:02:23]} 13. Ne2 {[%clk 0:02:25]}  Bf5 {[%clk 0:02:19]} 14. Nc1 {[%clk 0:02:19]}  c5 {[%clk 0:02:10]} 15. Bxa6 {[%clk 0:01:48]}  Qxa6 {[%clk 0:02:07]} 16. dxc5 {[%clk 0:01:44]}  Qc4 {[%clk 0:01:34]} 17. Rd2 {[%clk 0:01:38]}  a5 {[%clk 0:01:29]} 18. Nd4 {[%clk 0:01:35]}  Bxd4 {[%clk 0:01:23]} 19. exd4 {[%clk 0:01:27]}  a4 {[%clk 0:01:23]} 20. Be5 {[%clk 0:01:11]}  f6 {[%clk 0:01:12]} 21. Qf4 {[%clk 0:01:04]}  Bg6 {[%clk 0:01:03]} 22. Bxf6 {[%clk 0:01:01]}  O-O {[%clk 0:00:57]} 23. Qe3 {[%clk 0:00:47]}  exf6 {[%clk 0:00:48]} 24. b3 {[%clk 0:00:40]}  axb3 {[%clk 0:00:32]} 25. Qxb3 {[%clk 0:00:33]}  Qxb3+ {[%clk 0:00:27]} 26. Nxb3 {[%clk 0:00:30]}  Rfe8 {[%clk 0:00:27]} 27. Kb2 {[%clk 0:00:25]}  Ra7 {[%clk 0:00:25]} 28. f3 {[%clk 0:00:24]}  Rea8 {[%clk 0:00:26]} 29. Nc1 {[%clk 0:00:22]}  Ra3 {[%clk 0:00:26]} 30. Re2 {[%clk 0:00:21]}  Rc3 {[%clk 0:00:26]} 31. Rd2 {[%clk 0:00:19]}  Rc4 {[%clk 0:00:26]} 32. Nb3 {[%clk 0:00:17]}  Re8 {[%clk 0:00:24]} 33. g4 {[%clk 0:00:14]}  f5 {[%clk 0:00:22]} 34. g5 {[%clk 0:00:12]}  f4 {[%clk 0:00:23]} 35. Rh2 {[%clk 0:00:10]}  Re3 {[%clk 0:00:22]} 36. Nd2 {[%clk 0:00:05]}  Rxc2+ {[%clk 0:00:22]} 0-1


[Site "https://www.chess.com"]

[Event "Titled Tuesday Blitz April 25 Early 2023"]
[White "Gonzalez, Francisco Silva"]
[Black "Calhoun, Luke"]
[WhiteFideId "1512285"]
[BlackFideId "2064421"]
[WhiteElo "2074"]
[BlackElo "2253"]
[Result "1-0"]
[Round "04"]
[TimeControl "180+2"]
[Date "2023.04.25"]
[WhiteClock "0:02:01"]
[BlackClock "0:00:02"]

1. d4 {[%clk 0:03:00]}  Nf6 {[%clk 0:02:58]} 2. c4 {[%clk 0:03:01]}  g6 {[%clk 0:02:58]} 3. Nc3 {[%clk 0:03:01]}  Bg7 {[%clk 0:02:58]} 4. e4 {[%clk 0:03:02]}  d6 {[%clk 0:02:58]} 5. f3 {[%clk 0:03:02]}  O-O {[%clk 0:02:57]} 6. Be3 {[%clk 0:03:03]}  c5 {[%clk 0:02:56]} 7. Nge2 {[%clk 0:03:02]}  Nc6 {[%clk 0:02:55]} 8. d5 {[%clk 0:03:02]}  Ne5 {[%clk 0:02:54]} 9. Ng3 {[%clk 0:03:03]}  h5 {[%clk 0:02:53]} 10. Be2 {[%clk 0:03:03]}  h4 {[%clk 0:02:52]} 11. Nf1 {[%clk 0:03:04]}  h3 {[%clk 0:02:49]} 12. g4 {[%clk 0:03:04]}  e6 {[%clk 0:02:41]} 13. g5 {[%clk 0:03:04]}  Nh5 {[%clk 0:02:37]} 14. f4 {[%clk 0:03:04]}  Nxc4 {[%clk 0:02:31]} 15. Bxc4 {[%clk 0:03:03]}  b5 {[%clk 0:02:31]} 16. Nxb5 {[%clk 0:03:01]}  exd5 {[%clk 0:02:27]} 17. Bxd5 {[%clk 0:02:59]}  Rb8 {[%clk 0:02:23]} 18. a4 {[%clk 0:02:55]}  Bxb2 {[%clk 0:02:05]} 19. Nxd6 {[%clk 0:02:54]}  Bxa1 {[%clk 0:01:56]} 20. Nxf7 {[%clk 0:02:54]}  Qa5+ {[%clk 0:01:51]} 21. Kf2 {[%clk 0:02:53]}  Rb2+ {[%clk 0:01:47]} 22. Kf3 {[%clk 0:02:53]}  Rxf7 {[%clk 0:01:37]} 23. Qxa1 {[%clk 0:02:51]}  Qc3 {[%clk 0:01:30]} 24. Ng3 {[%clk 0:02:35]}  Qc2 {[%clk 0:00:48]} 25. Rg1 {[%clk 0:02:20]}  Nxg3 {[%clk 0:00:23]} 26. Bxf7+ {[%clk 0:02:18]}  Kxf7 {[%clk 0:00:21]} 27. Kxg3 {[%clk 0:02:17]}  Qxh2+ {[%clk 0:00:20]} 28. Kh4 {[%clk 0:02:14]}  Be6 {[%clk 0:00:10]} 29. f5 {[%clk 0:02:08]}  gxf5 {[%clk 0:00:09]} 30. g6+ {[%clk 0:02:07]}  Kg8 {[%clk 0:00:08]} 31. Qd1 {[%clk 0:02:02]}  f4 {[%clk 0:00:06]} 32. Qd8+ {[%clk 0:02:01]}  Kg7 {[%clk 0:00:06]} 33. Qe7+ {[%clk 0:02:01]}  Kg8 {[%clk 0:00:05]} 34. Qxe6+ {[%clk 0:02:00]}  Kg7 {[%clk 0:00:05]} 35. Qf7+ {[%clk 0:02:00]}  Kh6 {[%clk 0:00:05]} 36. Bxf4+ {[%clk 0:02:00]}  Qxf4+ {[%clk 0:00:03]} 37. Qxf4+ {[%clk 0:02:00]}  Kg7 {[%clk 0:00:02]} 38. Qe5+ {[%clk 0:02:01]}  Kh6 {[%clk 0:00:02]} 39. Qxb2 {[%clk 0:02:01]} 1-0


[Site "https://www.chess.com"]

[Event "Titled Tuesday Blitz April 25 Early 2023"]
[White "Necula, Iulian"]
[Black "Chirivi C, Jenny Astrid"]
[WhiteFideId "1232380"]
[BlackFideId "4403061"]
[WhiteElo "1790"]
[BlackElo "2001"]
[Result "0-1"]
[Round "04"]
[TimeControl "180+2"]
[Date "2023.04.25"]
[WhiteClock "0:00:29"]
[BlackClock "0:01:06"]

1. d4 {[%clk 0:03:00]}  Nf6 {[%clk 0:02:58]} 2. Nc3 {[%clk 0:03:01]}  d5 {[%clk 0:02:57]} 3. Bf4 {[%clk 0:03:01]}  Bf5 {[%clk 0:02:49]} 4. e3 {[%clk 0:03:00]}  e6 {[%clk 0:02:48]} 5. Nf3 {[%clk 0:03:00]}  Bb4 {[%clk 0:02:47]} 6. Bd3 {[%clk 0:02:36]}  Ne4 {[%clk 0:02:42]} 7. Bxe4 {[%clk 0:02:36]}  Bxe4 {[%clk 0:02:40]} 8. O-O {[%clk 0:02:34]}  Bg6 {[%clk 0:02:33]} 9. Ne2 {[%clk 0:02:31]}  O-O {[%clk 0:02:31]} 10. c3 {[%clk 0:02:31]}  Bd6 {[%clk 0:02:29]} 11. Be5 {[%clk 0:02:30]}  c5 {[%clk 0:02:27]} 12. Nf4 {[%clk 0:02:29]}  Bf5 {[%clk 0:02:24]} 13. h3 {[%clk 0:02:24]}  Nc6 {[%clk 0:02:23]} 14. Bxd6 {[%clk 0:02:21]}  Qxd6 {[%clk 0:02:21]} 15. dxc5 {[%clk 0:02:19]}  Qxc5 {[%clk 0:02:20]} 16. Nd4 {[%clk 0:02:18]}  Be4 {[%clk 0:02:16]} 17. f3 {[%clk 0:02:18]}  Bg6 {[%clk 0:02:15]} 18. Nxg6 {[%clk 0:02:17]}  hxg6 {[%clk 0:02:14]} 19. Rc1 {[%clk 0:02:14]}  Rac8 {[%clk 0:02:12]} 20. Qd2 {[%clk 0:02:07]}  Ne5 {[%clk 0:02:11]} 21. Rfd1 {[%clk 0:01:54]}  Nc4 {[%clk 0:02:09]} 22. Qe2 {[%clk 0:01:53]}  Rc7 {[%clk 0:02:06]} 23. f4 {[%clk 0:01:51]}  Rfc8 {[%clk 0:02:05]} 24. Re1 {[%clk 0:01:22]}  Qb6 {[%clk 0:01:55]} 25. Nb3 {[%clk 0:01:22]}  a5 {[%clk 0:01:49]} 26. Rb1 {[%clk 0:01:07]}  a4 {[%clk 0:01:45]} 27. Nd4 {[%clk 0:01:07]}  Nd6 {[%clk 0:01:40]} 28. Qc2 {[%clk 0:00:57]}  Qa6 {[%clk 0:01:34]} 29. Qe2 {[%clk 0:00:53]}  Rc4 {[%clk 0:01:33]} 30. Nc2 {[%clk 0:00:41]}  Qb6 {[%clk 0:01:18]} 31. Nb4 {[%clk 0:00:41]}  Ne4 {[%clk 0:01:15]} 32. Nd3 {[%clk 0:00:35]}  Qd6 {[%clk 0:01:11]} 33. Ne5 {[%clk 0:00:34]}  R4c5 {[%clk 0:01:08]} 34. Qf2 {[%clk 0:00:29]}  Nxf2 {[%clk 0:01:06]} 0-1


[Site "https://www.chess.com"]

[Event "Titled Tuesday Blitz April 25 Early 2023"]
[White "Vidruska, Renate"]
[Black "Bueno, Alfeu Junior Varela"]
[WhiteFideId "11601841"]
[BlackFideId "2108879"]
[WhiteElo "1976"]
[BlackElo "2175"]
[Result "0-1"]
[Round "04"]
[TimeControl "180+2"]
[Date "2023.04.25"]
[WhiteClock "0:01:24"]
[BlackClock "0:00:46"]

1. e4 {[%clk 0:03:00]}  e6 {[%clk 0:02:57]} 2. d4 {[%clk 0:03:00]}  d5 {[%clk 0:02:58]} 3. exd5 {[%clk 0:03:00]}  exd5 {[%clk 0:02:58]} 4. Bd3 {[%clk 0:03:01]}  Nc6 {[%clk 0:02:58]} 5. Ne2 {[%clk 0:03:01]}  Bd6 {[%clk 0:02:58]} 6. c3 {[%clk 0:03:00]}  Qh4 {[%clk 0:02:58]} 7. Be3 {[%clk 0:02:54]}  Nf6 {[%clk 0:02:53]} 8. h3 {[%clk 0:02:53]}  Ng4 {[%clk 0:02:42]} 9. g3 {[%clk 0:02:39]}  Nxe3 {[%clk 0:02:41]} 10. gxh4 {[%clk 0:02:36]}  Nxd1 {[%clk 0:02:38]} 11. Kxd1 {[%clk 0:02:37]}  Be6 {[%clk 0:02:29]} 12. Nd2 {[%clk 0:02:35]}  O-O-O {[%clk 0:02:28]} 13. Kc2 {[%clk 0:02:35]}  h5 {[%clk 0:02:17]} 14. f4 {[%clk 0:02:33]}  Ne7 {[%clk 0:02:14]} 15. Raf1 {[%clk 0:02:26]}  g6 {[%clk 0:02:13]} 16. Ng3 {[%clk 0:02:23]}  Rde8 {[%clk 0:02:02]} 17. Rhg1 {[%clk 0:02:18]}  Bxh3 {[%clk 0:02:01]} 18. Rf2 {[%clk 0:02:17]}  c6 {[%clk 0:01:49]} 19. a3 {[%clk 0:02:16]}  Bg4 {[%clk 0:01:33]} 20. c4 {[%clk 0:02:12]}  Kd7 {[%clk 0:01:23]} 21. b4 {[%clk 0:02:12]}  a5 {[%clk 0:01:19]} 22. b5 {[%clk 0:02:08]}  Bxa3 {[%clk 0:01:17]} 23. f5 {[%clk 0:02:08]}  Rhf8 {[%clk 0:01:09]} 24. bxc6+ {[%clk 0:01:54]}  bxc6 {[%clk 0:01:09]} 25. cxd5 {[%clk 0:01:55]}  Nxd5 {[%clk 0:01:08]} 26. fxg6 {[%clk 0:01:53]}  fxg6 {[%clk 0:01:07]} 27. Rxf8 {[%clk 0:01:51]}  Rxf8 {[%clk 0:01:08]} 28. Bxg6 {[%clk 0:01:51]}  Rf2 {[%clk 0:01:00]} 29. Bxh5 {[%clk 0:01:45]}  Bxh5 {[%clk 0:00:56]} 30. Nxh5 {[%clk 0:01:45]}  Bb4 {[%clk 0:00:57]} 31. Rd1 {[%clk 0:01:36]}  Ne3+ {[%clk 0:00:56]} 32. Kc1 {[%clk 0:01:26]}  Nxd1 {[%clk 0:00:55]} 33. Ne4 {[%clk 0:01:25]}  Rf1 {[%clk 0:00:48]} 34. Nhf6+ {[%clk 0:01:24]}  Ke6 {[%clk 0:00:46]} 0-1


[Site "https://www.chess.com"]

[Event "Titled Tuesday Blitz April 25 Early 2023"]
[White "Levitan, Caleb Levi"]
[Black "Maluco_do_Natal_00"]
[WhiteFideId "14332620"]
[WhiteElo "1963"]
[BlackElo "2002"]
[Result "0-1"]
[Round "04"]
[TimeControl "180+2"]
[Date "2023.04.25"]
[WhiteClock "0:00:05"]
[BlackClock "0:00:04"]

1. e4 {[%clk 0:03:00]}  c5 {[%clk 0:02:59]} 2. Nf3 {[%clk 0:03:01]}  Nc6 {[%clk 0:02:59]} 3. Nc3 {[%clk 0:03:00]}  d6 {[%clk 0:02:56]} 4. d4 {[%clk 0:02:58]}  cxd4 {[%clk 0:02:57]} 5. Nxd4 {[%clk 0:02:58]}  Nf6 {[%clk 0:02:53]} 6. Bc4 {[%clk 0:02:58]}  e6 {[%clk 0:02:51]} 7. Bb3 {[%clk 0:02:58]}  Be7 {[%clk 0:02:47]} 8. Be3 {[%clk 0:02:55]}  a6 {[%clk 0:02:44]} 9. f3 {[%clk 0:02:53]}  Qc7 {[%clk 0:02:44]} 10. g4 {[%clk 0:02:48]}  O-O {[%clk 0:02:19]} 11. g5 {[%clk 0:02:44]}  Nh5 {[%clk 0:02:18]} 12. f4 {[%clk 0:02:30]}  Nxd4 {[%clk 0:02:10]} 13. Qxd4 {[%clk 0:02:10]}  b5 {[%clk 0:01:39]} 14. O-O-O {[%clk 0:01:49]}  Bb7 {[%clk 0:01:31]} 15. Rhg1 {[%clk 0:01:35]}  Rfd8 {[%clk 0:01:11]} 16. f5 {[%clk 0:01:27]}  e5 {[%clk 0:00:33]} 17. Qd2 {[%clk 0:01:12]}  b4 {[%clk 0:00:24]} 18. Nd5 {[%clk 0:01:05]}  Bxd5 {[%clk 0:00:19]} 19. Bxd5 {[%clk 0:00:55]}  Rac8 {[%clk 0:00:16]} 20. g6 {[%clk 0:00:38]}  hxg6 {[%clk 0:00:15]} 21. fxg6 {[%clk 0:00:37]}  Bf6 {[%clk 0:00:12]} 22. gxf7+ {[%clk 0:00:28]}  Kf8 {[%clk 0:00:13]} 23. Be6 {[%clk 0:00:20]}  Rb8 {[%clk 0:00:10]} 24. Qe2 {[%clk 0:00:19]}  Nf4 {[%clk 0:00:09]} 25. Bxf4 {[%clk 0:00:19]}  exf4 {[%clk 0:00:09]} 26. Qh5 {[%clk 0:00:14]}  Ke7 {[%clk 0:00:09]} 27. Bb3 {[%clk 0:00:13]}  Qc5 {[%clk 0:00:08]} 28. Qxc5 {[%clk 0:00:04]}  dxc5 {[%clk 0:00:08]} 29. Rxd8 {[%clk 0:00:04]}  Rxd8 {[%clk 0:00:08]} 30. a3 {[%clk 0:00:03]}  a5 {[%clk 0:00:08]} 31. axb4 {[%clk 0:00:03]}  axb4 {[%clk 0:00:08]} 32. Re1 {[%clk 0:00:03]}  Bd4 {[%clk 0:00:07]} 33. e5 {[%clk 0:00:02]}  Be3+ {[%clk 0:00:08]} 34. Kb1 {[%clk 0:00:02]}  Rd2 {[%clk 0:00:06]} 35. h4 {[%clk 0:00:02]}  Rh2 {[%clk 0:00:05]} 36. e6 {[%clk 0:00:02]}  Rxh4 {[%clk 0:00:05]} 37. Rd1 {[%clk 0:00:02]}  Bd4 {[%clk 0:00:04]} 38. c3 {[%clk 0:00:03]}  bxc3 {[%clk 0:00:04]} 39. bxc3 {[%clk 0:00:03]}  Rh3 {[%clk 0:00:04]} 40. cxd4 {[%clk 0:00:03]}  Rxb3+ {[%clk 0:00:04]} 41. Kc2 {[%clk 0:00:03]}  Re3 {[%clk 0:00:04]} 42. dxc5 {[%clk 0:00:02]}  Rxe6 {[%clk 0:00:04]} 43. Rd7+ {[%clk 0:00:02]}  Kf8 {[%clk 0:00:03]} 44. Rb7 {[%clk 0:00:02]}  Rc6 {[%clk 0:00:03]} 45. Rb5 {[%clk 0:00:01]}  Kxf7 {[%clk 0:00:03]} 46. Kd3 {[%clk 0:00:02]}  Kf6 {[%clk 0:00:03]} 47. Ke4 {[%clk 0:00:03]}  g5 {[%clk 0:00:02]} 48. Kd5 {[%clk 0:00:03]}  Rc8 {[%clk 0:00:02]} 49. Rb6+ {[%clk 0:00:03]}  Kf5 {[%clk 0:00:02]} 50. c6 {[%clk 0:00:04]}  f3 {[%clk 0:00:03]} 51. Rb3 {[%clk 0:00:03]}  g4 {[%clk 0:00:02]} 52. Rb1 {[%clk 0:00:03]}  g3 {[%clk 0:00:02]} 53. Kd6 {[%clk 0:00:03]}  f2 {[%clk 0:00:02]} 54. Kd7 {[%clk 0:00:03]}  Rxc6 {[%clk 0:00:02]} 55. Kxc6 {[%clk 0:00:03]}  g2 {[%clk 0:00:03]} 56. Kd5 {[%clk 0:00:02]}  f1=Q {[%clk 0:00:03]} 57. Rxf1+ {[%clk 0:00:01]}  gxf1=Q {[%clk 0:00:03]} 58. Kd4 {[%clk 0:00:02]}  Qd1+ {[%clk 0:00:03]} 59. Kc5 {[%clk 0:00:03]}  Qd2 {[%clk 0:00:03]} 60. Kc4 {[%clk 0:00:04]}  Ke4 {[%clk 0:00:03]} 61. Kc5 {[%clk 0:00:04]}  Qc3+ {[%clk 0:00:03]} 62. Kb5 {[%clk 0:00:04]}  Qc2 {[%clk 0:00:03]} 63. Kb4 {[%clk 0:00:05]}  Kd5 {[%clk 0:00:04]} 64. Kb5 {[%clk 0:00:04]}  Qb2+ {[%clk 0:00:04]} 65. Ka4 {[%clk 0:00:05]}  Kc4 {[%clk 0:00:04]} 0-1


[Site "https://www.chess.com"]

[Event "Titled Tuesday Blitz April 25 Early 2023"]
[White "Vargas, Mauricio"]
[Black "Fierz, Martin"]
[WhiteFideId "4404572"]
[BlackFideId "1302132"]
[WhiteElo "1998"]
[BlackElo "2257"]
[Result "0-1"]
[Round "04"]
[TimeControl "180+2"]
[Date "2023.04.25"]
[WhiteClock "0:00:01"]
[BlackClock "0:00:03"]

1. e4 {[%clk 0:02:55]}  c5 {[%clk 0:02:57]} 2. f4 {[%clk 0:02:52]}  d5 {[%clk 0:02:56]} 3. e5 {[%clk 0:02:52]}  Nc6 {[%clk 0:02:45]} 4. Nf3 {[%clk 0:02:47]}  Bf5 {[%clk 0:02:37]} 5. Bb5 {[%clk 0:02:46]}  Rc8 {[%clk 0:02:33]} 6. Bxc6+ {[%clk 0:02:47]}  Rxc6 {[%clk 0:02:31]} 7. d3 {[%clk 0:02:48]}  h5 {[%clk 0:02:29]} 8. Ng5 {[%clk 0:02:43]}  e6 {[%clk 0:02:21]} 9. h3 {[%clk 0:02:42]}  Be7 {[%clk 0:02:18]} 10. O-O {[%clk 0:02:39]}  Bxg5 {[%clk 0:02:16]} 11. fxg5 {[%clk 0:02:37]}  Ne7 {[%clk 0:02:16]} 12. Nc3 {[%clk 0:02:33]}  Ng6 {[%clk 0:02:11]} 13. Qe1 {[%clk 0:02:32]}  a6 {[%clk 0:02:05]} 14. Bd2 {[%clk 0:02:28]}  Qc7 {[%clk 0:02:05]} 15. Bf4 {[%clk 0:02:20]}  b5 {[%clk 0:01:57]} 16. Bh2 {[%clk 0:02:12]}  b4 {[%clk 0:01:49]} 17. Nd1 {[%clk 0:02:02]}  Ne7 {[%clk 0:01:45]} 18. Ne3 {[%clk 0:01:55]}  a5 {[%clk 0:01:32]} 19. Rc1 {[%clk 0:01:51]}  Bg6 {[%clk 0:01:29]} 20. Qf2 {[%clk 0:01:40]}  a4 {[%clk 0:01:20]} 21. c4 {[%clk 0:01:23]}  d4 {[%clk 0:01:17]} 22. Nd1 {[%clk 0:01:15]}  b3 {[%clk 0:01:00]} 23. axb3 {[%clk 0:01:08]}  axb3 {[%clk 0:01:00]} 24. Ra1 {[%clk 0:01:08]}  O-O {[%clk 0:00:59]} 25. Qf3 {[%clk 0:01:05]}  Qb7 {[%clk 0:00:34]} 26. Nf2 {[%clk 0:01:03]}  Nf5 {[%clk 0:00:30]} 27. Ne4 {[%clk 0:00:59]}  Ne3 {[%clk 0:00:30]} 28. Rf2 {[%clk 0:00:49]}  Ra8 {[%clk 0:00:23]} 29. Rb1 {[%clk 0:00:39]}  Qb6 {[%clk 0:00:21]} 30. Nd6 {[%clk 0:00:33]}  Ra7 {[%clk 0:00:19]} 31. Bf4 {[%clk 0:00:25]}  Nf5 {[%clk 0:00:10]} 32. Ne4 {[%clk 0:00:21]}  Ra2 {[%clk 0:00:07]} 33. Nf6+ {[%clk 0:00:18]}  gxf6 {[%clk 0:00:05]} 34. gxf6 {[%clk 0:00:18]}  Rc8 {[%clk 0:00:04]} 35. Bh6 {[%clk 0:00:17]}  Rca8 {[%clk 0:00:04]} 36. Qf4 {[%clk 0:00:08]}  Ra1 {[%clk 0:00:03]} 37. Rff1 {[%clk 0:00:08]}  Rxb1 {[%clk 0:00:04]} 38. Rxb1 {[%clk 0:00:07]}  Qb4 {[%clk 0:00:03]} 39. g4 {[%clk 0:00:06]}  hxg4 {[%clk 0:00:02]} 40. hxg4 {[%clk 0:00:06]}  Nh4 {[%clk 0:00:01]} 41. Qg5 {[%clk 0:00:05]}  Nf3+ {[%clk 0:00:01]} 42. Kg2 {[%clk 0:00:04]}  Nxg5 {[%clk 0:00:02]} 43. Bxg5 {[%clk 0:00:04]}  Ra2 {[%clk 0:00:02]} 44. Kg3 {[%clk 0:00:01]}  Qa4 {[%clk 0:00:03]} 0-1


[Site "https://www.chess.com"]